fUSD/lending_fUSD_20260414
["ID","MTS","AMOUNT","RATE_DAILY","PERIOD"]
[420484836,1776148247019,-2988.04201016,8.958e-05,2]
[420484837,1776148247120,-10000.01,8.958e-05,2]
[420484838,1776148247244,-10000.01,8.958e-05,2]
[420484839,1776148247392,-10000.01,8.958e-05,2]
[420484840,1776148247514,-10000.01,8.958e-05,2]
[420484841,1776148247810,-10000.01,8.958e-05,2]
[420484842,1776148252368,-10000.01,8.958e-05,2]
[420484843,1776148252500,-10000.01,8.958e-05,2]
[420484844,1776148252615,-10000.01,8.958e-05,2]
[420484845,1776148252724,-10000.01,8.958e-05,2]
[420484846,1776148252875,-10000.01,8.958e-05,2]
[420484847,1776148253078,-10000.01,8.958e-05,2]
[420484849,1776148465199,3669.6966,8.858e-05,2]
[420484850,1776148516673,-155.0,8.858e-05,3]
[420484851,1776148516708,-1031.0,8.858e-05,3]
[420484852,1776148517808,163.0,8.858e-05,3]
[420484854,1776148566895,980.0,8.858e-05,3]
[420484855,1776148569912,2094.33,8.229e-05,2]
[420484856,1776148614700,200.0,8.209e-05,2]
[420484857,1776148627265,931.0,8.858e-05,3]
[420484858,1776148673997,2500.0,8.857e-05,2]
[420484859,1776148707554,-300.0,8.954e-05,2]
[420484860,1776148707595,-278.0,8.954e-05,2]
[420484861,1776148707629,-300.0,8.955e-05,2]
[420484862,1776148707662,-1200.0,8.955e-05,2]
[420484863,1776148707695,-150.0,8.955e-05,2]
[420484864,1776148707734,-300.0,8.955e-05,2]
[420484865,1776148707775,-483.36103957,8.956e-05,2]
[420484866,1776148707816,-500.0,8.956e-05,2]
[420484867,1776148707855,-539.89315581,8.956e-05,2]
[420484868,1776148707886,-500.0,8.956e-05,2]
[420484869,1776148707919,-316.87399315,8.956e-05,2]
[420484870,1776148709572,-500.0,8.956e-05,2]
[420484871,1776148709614,-500.0,8.956e-05,2]
[420484872,1776148709655,-500.0,8.956e-05,2]
[420484873,1776148709688,-500.0,8.956e-05,2]
[420484874,1776148709721,-500.0,8.956e-05,2]
[420484875,1776148709753,-500.0,8.956e-05,2]
[420484876,1776148709791,-500.0,8.956e-05,2]
[420484877,1776148709828,-500.0,8.956e-05,2]
[420484878,1776148709868,-500.0,8.956e-05,2]
[420484879,1776148709913,-500.0,8.956e-05,2]
[420484880,1776148711509,-500.0,8.956e-05,2]
[420484881,1776148711543,-500.0,8.956e-05,2]
[420484882,1776148711577,-500.0,8.956e-05,2]
[420484883,1776148711616,-500.0,8.956e-05,2]
[420484884,1776148711654,-500.0,8.956e-05,2]
[420484885,1776148711699,-500.0,8.956e-05,2]
[420484886,1776148711746,-500.0,8.956e-05,2]
[420484887,1776148711803,-500.0,8.956e-05,2]
[420484888,1776148711857,-347.30704599,8.956e-05,2]
[420484889,1776148711945,-500.0,8.956e-05,2]
[420484890,1776148714405,-500.0,8.956e-05,2]
[420484891,1776148714450,-500.0,8.956e-05,2]
[420484892,1776148714511,-500.0,8.956e-05,2]
[420484893,1776148714575,-500.0,8.956e-05,2]
[420484894,1776148714634,-500.0,8.956e-05,2]
[420484895,1776148714683,-500.0,8.956e-05,2]
[420484896,1776148714742,-500.0,8.956e-05,2]
[420484897,1776148714785,-500.0,8.956e-05,2]
[420484898,1776148714823,-500.0,8.956e-05,2]
[420484899,1776148714861,-500.0,8.956e-05,2]
[420484900,1776148714961,-200.0,8.956e-05,2]
[420484901,1776148753952,10000.01,8.249e-05,2]
[420484902,1776148753991,116.34,8.249e-05,2]
[420484903,1776148755473,-886.0,8.858e-05,3]
[420484904,1776148759446,8228.01,8.857e-05,2]
[420484905,1776148759501,10000.01,8.857e-05,2]
[420484906,1776148759563,10000.01,8.857e-05,2]
[420484907,1776148759601,4833.241,8.857e-05,2]
[420484908,1776148776653,500.0,8.275e-05,2]
[420484909,1776148812162,155.0,8.275e-05,3]
[420484910,1776148812253,842.0,8.275e-05,3]
[420484911,1776148819679,164.0,8.275e-05,3]
[420484912,1776148829748,3505.769,8.857e-05,2]
[420484913,1776148829783,10000.01,8.857e-05,2]
[420484914,1776148829847,10000.01,8.857e-05,2]
[420484915,1776148829887,3943.5252,8.857e-05,2]
[420484916,1776148830467,298.75913842,8.856e-05,2]
[420484917,1776148836163,2500.0,8.857e-05,2]
[420484921,1776148867794,843.0,8.275e-05,3]
[420484922,1776148922815,2414.72566158,8.857e-05,2]
[420484923,1776148922847,10000.01,8.857e-05,2]
[420484924,1776148922900,10000.01,8.857e-05,2]
[420484925,1776148922967,10000.01,8.857e-05,2]
[420484926,1776148923012,646.51533842,8.857e-05,2]
[420484927,1776148987508,812.0,8.857e-05,3]
[420484928,1776148992795,1283.0079,8.858e-05,2]
[420484931,1776149047196,771.0,8.858e-05,3]
[420484933,1776149077940,200.0,8.7e-05,2]
[420484934,1776149078756,6934.0021,8.857e-05,2]
[420484935,1776149078785,1980.8072,8.857e-05,2]
[420484938,1776149107717,155.0,8.857e-05,3]
[420484939,1776149112130,733.0,8.857e-05,3]
[420484940,1776149140771,555.89,4.294e-05,2]
[420484941,1776149141023,555.89,4.519e-05,2]
[420484942,1776149141249,555.89,4.745e-05,2]
[420484943,1776149141427,555.89,4.971e-05,2]
[420484944,1776149141682,555.89,5.197e-05,2]
[420484945,1776149141859,555.89,5.423e-05,2]
[420484946,1776149142088,555.89,5.649e-05,2]
[420484947,1776149142482,555.89,5.875e-05,2]
[420484948,1776149142683,555.89,6.101e-05,2]
[420484949,1776149142891,555.89,6.327e-05,2]
[420484950,1776149143091,555.89,6.553e-05,2]
[420484951,1776149143310,555.89,6.779e-05,2]
[420484952,1776149143483,460.5228,7.005e-05,2]
[420484953,1776149143506,95.3672,7.005e-05,2]
[420484954,1776149143663,555.89,7.231e-05,2]
[420484955,1776149143880,555.89,7.457e-05,2]
[420484956,1776149144344,555.89,7.683e-05,2]
[420484957,1776149144601,555.89,7.909e-05,2]
[420484958,1776149144749,555.89,8.135e-05,2]
[420484959,1776149144951,555.89,8.361e-05,2]
[420484960,1776149145173,555.89,8.587e-05,2]
[420484962,1776149151832,500.0,8.573e-05,2]
[420484967,1776149167064,717.0,8.857e-05,3]
[420484968,1776149174151,152.0,8.204e-05,2]
[420484969,1776149189170,9848.01,8.857e-05,2]
[420484970,1776149189220,10000.01,8.857e-05,2]
[420484971,1776149189247,10000.01,8.857e-05,2]
[420484972,1776149189279,10000.01,8.857e-05,2]
[420484973,1776149189303,10000.01,8.857e-05,2]
[420484974,1776149189332,10000.01,8.857e-05,2]
[420484975,1776149189358,10000.01,8.857e-05,2]
[420484976,1776149189384,10000.01,8.857e-05,2]
[420484977,1776149189409,10000.01,8.857e-05,2]
[420484978,1776149189438,10000.01,8.857e-05,2]
[420484979,1776149211247,-395.39200826,8.856e-05,2]
[420484980,1776149211308,-500.0,8.856e-05,2]
[420484981,1776149211353,-500.0,8.856e-05,2]
[420484982,1776149211397,-393.47800955,8.856e-05,2]
[420484983,1776149211441,-500.0,8.856e-05,2]
[420484984,1776149211477,-500.0,8.856e-05,2]
[420484985,1776149211518,-500.0,8.856e-05,2]
[420484986,1776149211957,-500.0,8.856e-05,2]
[420484987,1776149212011,-500.0,8.856e-05,2]
[420484988,1776149212070,-500.0,8.856e-05,2]
[420484989,1776149212395,-587.02488535,8.856e-05,2]
[420484990,1776149212433,-210.99239534,8.856e-05,2]
[420484991,1776149212475,-500.0,8.856e-05,2]
[420484992,1776149212516,-254.7307046,8.856e-05,2]
[420484993,1776149212559,-500.0,8.856e-05,2]
[420484994,1776149212599,-500.0,8.856e-05,2]
[420484995,1776149212632,-553.88559636,8.856e-05,2]
[420484996,1776149212667,-277.0,8.856e-05,2]
[420484997,1776149212704,-499.7085,8.856e-05,2]
[420484998,1776149224930,1400.0,8.8e-05,3]
[420484999,1776149231889,785.0,8.856e-05,3]
[420485000,1776149235428,48.3258367,8.856e-05,2]
[420485001,1776149235462,451.6741633,8.856e-05,2]
[420485002,1776149235521,500.0,8.856e-05,2]
[420485003,1776149235599,500.0,8.856e-05,2]
[420485004,1776149235653,500.0,8.856e-05,2]
[420485005,1776149235711,500.0,8.856e-05,2]
[420485006,1776149235869,500.0,8.856e-05,2]
[420485007,1776149235960,500.0,8.856e-05,2]
[420485008,1776149236029,500.0,8.856e-05,2]
[420485009,1776149236172,500.0,8.856e-05,2]
[420485010,1776149236213,500.0,8.856e-05,2]
[420485011,1776149236258,500.0,8.856e-05,2]
[420485012,1776149236313,500.0,8.856e-05,2]
[420485013,1776149236357,500.0,8.856e-05,2]
[420485014,1776149236402,597.76510084,8.856e-05,2]
[420485015,1776149236449,500.0,8.856e-05,2]
[420485016,1776149236517,500.0,8.856e-05,2]
[420485017,1776149236630,500.0,8.856e-05,2]
[420485018,1776149236929,500.0,8.856e-05,2]
[420485019,1776149237527,208.15546082,8.856e-05,2]
[420485020,1776149237568,634.16721977,8.856e-05,2]
[420485021,1776149237634,108.24805527,8.856e-05,2]
[420485022,1776149237661,182.99927887,8.856e-05,2]
[420485023,1776149245398,858.583723,8.812e-05,2]
[420485031,1776149245621,430.95881578,8.856e-05,2]
[420485051,1776149265460,500.0,8.856e-05,2]
[420485053,1776149271318,500.0,8.856e-05,2]
[420485054,1776149281138,300.0,8.856e-05,2]
[420485055,1776149281876,150.0,8.856e-05,2]
[420485056,1776149324337,251.0,8.856e-05,2]
[420485057,1776149351232,756.0,8.856e-05,3]
[420485063,1776149401163,300.0,8.856e-05,2]
[420485064,1776149401235,300.0,8.856e-05,2]
[420485065,1776149401278,1200.0,8.856e-05,2]
[420485066,1776149407361,718.0,8.856e-05,3]
[420485067,1776149407425,155.0,8.856e-05,3]
[420485070,1776149423150,3397.46818235,8.77e-05,2]
[420485071,1776149423206,10000.01,8.77e-05,2]
[420485072,1776149423280,10000.01,8.77e-05,2]
[420485073,1776149423328,10000.01,8.77e-05,2]
[420485074,1776149423383,10000.01,8.77e-05,2]
[420485075,1776149423446,10000.01,8.77e-05,2]
[420485076,1776149423491,10000.01,8.77e-05,2]
[420485077,1776149423539,10000.01,8.77e-05,2]
[420485078,1776149423583,10000.01,8.77e-05,2]
[420485079,1776149423614,10000.01,8.77e-05,2]
[420485086,1776149433751,-11977.59821765,8.77e-05,2]
[420485087,1776149433761,-21499.15178235,8.857e-05,2]
[420485088,1776149433904,-130848.38079578,8.857e-05,2]
[420485089,1776149433920,-867.296,8.857e-05,2]
[420485090,1776149433940,-730.24272,8.857e-05,2]
[420485091,1776149433952,-8700.0,8.857e-05,2]
[420485092,1776149438393,-3404.56,8.857e-05,2]
[420485116,1776149440384,-1285.88664767,8.857e-05,2]
[420485119,1776149440950,-880.45569674,8.857e-05,2]
[420485120,1776149440963,-2365.275,8.857e-05,2]
[420485121,1776149440989,-2511.0,8.857e-05,2]
[420485122,1776149441000,-1844.09,8.857e-05,2]
[420485123,1776149441075,-2320.75539106,8.857e-05,2]
[420485131,1776149443185,-4428.48259979,8.857e-05,2]
[420485135,1776149445049,-1218466.32336661,8.857e-05,2]
[420485136,1776149445061,-18438.638,8.857e-05,2]
[420485137,1776149445071,-372.75099703,8.857e-05,2]
[420485138,1776149445100,-277.0,8.857e-05,2]
[420485139,1776149445110,-2500.0,8.858e-05,2]
[420485140,1776149445121,-288.59970822,8.858e-05,2]
[420485141,1776149445143,-77985.505179,8.87e-05,2]
[420485142,1776149445153,-10000.01,8.87e-05,2]
[420485143,1776149445163,-2900.0,8.9e-05,3]
[420485144,1776149445185,-207.68,8.956e-05,2]
[420485145,1776149445197,-1306.76592407,8.987e-05,2]
[420485146,1776149445207,-9999.99,9e-05,2]
[420485147,1776149445221,-299.99,9e-05,2]
[420485148,1776149445238,-150.99,9e-05,2]
[420485149,1776149445248,-5447.81,9e-05,2]
[420485150,1776149445259,-999.99,9e-05,2]
[420485151,1776149445277,-1261.43,9e-05,2]
[420485152,1776149445293,-9999.99,9e-05,2]
[420485153,1776149445308,-2119.07,9e-05,2]
[420485154,1776149445318,-9999.99,9e-05,2]
[420485155,1776149445330,-2249.21,9e-05,2]
[420485156,1776149445347,-4400.0,9e-05,3]
[420485157,1776149445366,-1199.95308628,9.057e-05,3]
[420485158,1776149445376,-153.79322456,9.058e-05,2]
[420485159,1776149445386,-500.0,9.058e-05,2]
[420485160,1776149445402,-8577.78,9.06e-05,2]
[420485161,1776149445414,-4980.91322815,9.114e-05,2]
[420485162,1776149445432,-166.22,9.114e-05,2]
[420485163,1776149445443,-500.0,9.148e-05,2]
[420485164,1776149445453,-578.20924308,9.148e-05,2]
[420485165,1776149445469,-1428.38747117,9.148e-05,2]
[420485166,1776149445485,-200.0,9.148e-05,2]
[420485167,1776149445504,-209.40437684,9.148e-05,2]
[420485168,1776149445514,-721.12765535,9.148e-05,2]
[420485169,1776149445526,-9552.16786547,9.148e-05,2]
[420485170,1776149445561,-500.0,9.148e-05,2]
[420485171,1776149445574,-200.0,9.148e-05,2]
[420485172,1776149445586,-151.0,9.148e-05,2]
[420485173,1776149445623,-743.50770149,9.148e-05,2]
[420485174,1776149445634,-500.0,9.148e-05,2]
[420485175,1776149445660,-500.0,9.148e-05,2]
[420485176,1776149445670,-500.0,9.148e-05,2]
[420485177,1776149445695,-209.40437684,9.148e-05,2]
[420485178,1776149445705,-500.0,9.148e-05,2]
[420485179,1776149445723,-500.0,9.148e-05,2]
[420485180,1776149445735,-500.0,9.148e-05,2]
[420485181,1776149445755,-500.0,9.148e-05,2]
[420485182,1776149445765,-500.0,9.148e-05,2]
[420485183,1776149445775,-500.0,9.148e-05,2]
[420485184,1776149445795,-30.42859578,9.148e-05,2]
[420485186,1776149448328,-144.19059563,9.148e-05,2]
[420485187,1776149448338,-373.52432768,9.148e-05,2]
[420485188,1776149448365,-126.47567232,9.148e-05,2]
[420485189,1776149448375,-500.0,9.148e-05,2]
[420485190,1776149448387,-412.11643922,9.148e-05,2]
[420485191,1776149448399,-279.9045709,9.148e-05,2]
[420485192,1776149448409,-270.75280691,9.178e-05,2]
[420485193,1776149448418,-500.0,9.178e-05,2]
[420485194,1776149448430,-500.0,9.178e-05,2]
[420485195,1776149448448,-500.0,9.178e-05,2]
[420485196,1776149448458,-500.0,9.178e-05,2]
[420485197,1776149448470,-500.0,9.178e-05,2]
[420485198,1776149448481,-500.0,9.178e-05,2]
[420485199,1776149448502,-500.0,9.178e-05,2]
[420485200,1776149448514,-500.0,9.178e-05,2]
[420485201,1776149448537,-500.0,9.178e-05,2]
[420485202,1776149448554,-268.08092658,9.178e-05,2]
[420485203,1776149448572,-9905.5980765,9.203e-05,2]
[420485204,1776149448604,-500.0,9.203e-05,2]
[420485205,1776149448619,-151.0,9.203e-05,2]
[420485206,1776149448657,-207.68,9.23e-05,2]
[420485207,1776149448707,-10272.10520533,9.258e-05,2]
[420485208,1776149448736,-500.0,9.258e-05,2]
[420485209,1776149448747,-151.0,9.258e-05,2]
[420485210,1776149448765,-31432.08619148,9.27e-05,2]
[420485211,1776149448777,-249.8542,9.298e-05,2]
[420485212,1776149448789,-258.78877433,9.309e-05,2]
[420485213,1776149448800,-10652.17309792,9.313e-05,2]
[420485214,1776149448813,-500.0,9.313e-05,2]
[420485215,1776149448833,-151.0,9.313e-05,2]
[420485216,1776149448846,-1600.0,9.342e-05,2]
[420485217,1776149448858,-11046.30350255,9.368e-05,2]
[420485218,1776149448872,-500.0,9.368e-05,2]
[420485219,1776149448882,-151.0,9.368e-05,2]
[420485220,1776149448893,-404.01,9.411e-05,2]
[420485221,1776149448902,-500.0,9.422e-05,2]
[420485222,1776149448921,-11455.01673214,9.423e-05,2]
[420485223,1776149448931,-500.0,9.423e-05,2]
[420485224,1776149448944,-151.0,9.423e-05,2]
[420485225,1776149448957,-500.0,9.425e-05,2]
[420485226,1776149448971,-11878.85235123,9.478e-05,2]
[420485227,1776149448990,-500.0,9.478e-05,2]
[420485228,1776149449001,-151.0,9.478e-05,2]
[420485229,1776149449019,-3682.122,9.5e-05,2]
[420485230,1776149449049,-244.236,9.5e-05,2]
[420485231,1776149449062,-718.47108238,9.533e-05,2]
[420485232,1776149465616,500.0,8.856e-05,2]
[420485233,1776149465703,500.0,8.856e-05,2]
[420485234,1776149467456,500.0,8.856e-05,2]
[420485235,1776149467536,503.014662,8.856e-05,2]
[420485236,1776149479001,500.0,8.856e-05,2]
[420485237,1776149479100,500.0,8.856e-05,2]
[420485238,1776149479148,500.0,8.856e-05,2]
[420485239,1776149479193,500.0,8.856e-05,2]
[420485240,1776149479240,500.0,8.856e-05,2]
[420485241,1776149479299,500.0,8.856e-05,2]
[420485242,1776149479365,205.2066126,8.856e-05,2]
[420485243,1776149479434,500.0,8.856e-05,2]
[420485244,1776149479487,500.0,8.856e-05,2]
[420485245,1776149479574,500.0,8.856e-05,2]
[420485246,1776149479629,500.0,8.856e-05,2]
[420485247,1776149491794,2791.7887254,8.77e-05,2]
[420485248,1776149491826,10000.01,8.77e-05,2]
[420485249,1776149491859,10000.01,8.77e-05,2]
[420485250,1776149491889,10000.01,8.77e-05,2]
[420485251,1776149491923,10000.01,8.77e-05,2]
[420485252,1776149491955,10000.01,8.77e-05,2]
[420485253,1776149491988,10000.01,8.77e-05,2]
[420485254,1776149503274,579.70114246,6.812e-05,2]
[420485255,1776149525672,449.0,6.812e-05,3]
[420485256,1776149542146,164.0,6.812e-05,3]
[420485257,1776149568266,488.2776,8.757e-05,2]
[420485258,1776149570274,170.1912,8.757e-05,2]
[420485259,1776149586551,1110.0,8.757e-05,3]
[420485260,1776149588770,7618.5412,8.757e-05,2]
[420485261,1776149588821,10000.01,8.757e-05,2]
[420485262,1776149588859,10000.01,8.757e-05,2]
[420485263,1776149588894,10000.01,8.757e-05,2]
[420485264,1776149588932,10000.01,8.757e-05,2]
[420485265,1776149791447,2500.0,8.657e-05,2]
[420485266,1776149903958,2000.0,8.422e-05,2]
[420485267,1776149951466,1500.0,8.385e-05,2]
[420485268,1776149952861,4000.01,8.385e-05,2]
[420485269,1776149952890,1500.47,8.385e-05,2]
[420485270,1776149962468,2500.0,8.657e-05,2]
[420485271,1776150054072,1852.42,8.269e-05,2]
[420485272,1776150116189,-17158782.25193475,0.00045201,30]
[420485273,1776150116224,-11531890.0,0.00045201,30]
[420485274,1776150116271,-59601.75945,0.00045201,60]
[420485275,1776150116309,-6864.37615365,0.00045201,120]
[420485276,1776150116345,-200.0,0.00045201,120]
[420485277,1776150116375,-200.0,0.00045201,120]
[420485278,1776150116401,-200.0,0.00045201,120]
[420485279,1776150116432,-200.0,0.00045201,120]
[420485280,1776150116465,-200.0,0.00045201,120]
[420485281,1776150116492,-200.0,0.00045201,120]
[420485282,1776150116532,-1443.46361058,0.00045201,120]
[420485283,1776150116571,-200.0,0.00045201,120]
[420485284,1776150116619,-200.0,0.00045201,120]
[420485285,1776150116662,-200.0,0.00045201,120]
[420485286,1776150116699,-200.0,0.00045201,120]
[420485287,1776150116767,-200.0,0.00045201,120]
[420485288,1776150116800,-200.04973695,0.00045201,120]
[420485289,1776150116832,-1000.0,0.00045201,60]
[420485290,1776150116874,-317.06,0.00045201,120]
[420485291,1776150116918,-188.08893171,0.00045201,120]
[420485292,1776150116966,-188.08893171,0.00045201,120]
[420485293,1776150117026,-2000.0,0.00045201,120]
[420485294,1776150117092,-2000.0,0.00045201,120]
[420485295,1776150117124,-377.55,0.00045201,120]
[420485296,1776150117158,-1495.29,0.00045201,120]
[420485297,1776150117194,-500.0,0.00045201,120]
[420485298,1776150117225,-500.0,0.00045201,120]
[420485299,1776150117254,-259.11662413,0.00045201,120]
[420485300,1776150117291,-361.63044613,0.00045201,120]
[420485301,1776150117351,-500.0,0.00045201,120]
[420485302,1776150117397,-1392.928,0.00045201,120]
[420485303,1776150117439,-1392.928,0.00045201,120]
[420485304,1776150117473,-1392.928,0.00045201,120]
[420485305,1776150117505,-1392.928,0.00045201,120]
[420485306,1776150117546,-1392.928,0.00045201,120]
[420485307,1776150117590,-1392.928,0.00045201,120]
[420485308,1776150117641,-1392.928,0.00045201,120]
[420485309,1776150117692,-1392.928,0.00045201,120]
[420485310,1776150117736,-1392.928,0.00045201,120]
[420485311,1776150117773,-1392.928,0.00045201,120]
[420485312,1776150117806,-1392.928,0.00045201,120]
[420485313,1776150117843,-1392.928,0.00045201,120]
[420485314,1776150117878,-1392.928,0.00045201,120]
[420485315,1776150118482,-1392.928,0.00045201,120]
[420485316,1776150118522,-1392.928,0.00045201,120]
[420485317,1776150118559,-1392.928,0.00045201,120]
[420485318,1776150118605,-1392.928,0.00045201,120]
[420485319,1776150118640,-1392.928,0.00045201,120]
[420485320,1776150118678,-1392.928,0.00045201,120]
[420485321,1776150118716,-1392.928829,0.00045201,120]
[420485322,1776150118753,-14848.0,0.00045201,30]
[420485323,1776150118794,-10688.0,0.00045201,120]
[420485324,1776150118824,-638.16,0.00045201,30]
[420485325,1776150118865,-260.45135205,0.00045201,120]
[420485326,1776150118921,-204.81679018,0.00045201,120]
[420485327,1776150118964,-172.0,0.00045201,30]
[420485328,1776150119027,-688.0,0.00045201,120]
[420485329,1776150119113,-789.0,0.00045201,120]
[420485330,1776150119143,-789.35685562,0.00045201,120]
[420485331,1776150119179,-177.16666673,0.00045201,120]
[420485332,1776150119226,-177.16666673,0.00045201,120]
[420485333,1776150119269,-177.16666673,0.00045201,120]
[420485334,1776150119309,-177.16666673,0.00045201,120]
[420485335,1776150119342,-177.16666673,0.00045201,120]
[420485336,1776150119370,-177.16666673,0.00045201,120]
[420485337,1776150119400,-177.16666673,0.00045201,120]
[420485338,1776150119430,-177.16666673,0.00045201,120]
[420485339,1776150119468,-177.16666673,0.00045201,120]
[420485340,1776150119506,-177.16666673,0.00045201,120]
[420485341,1776150119537,-177.16666673,0.00045201,120]
[420485342,1776150119566,-177.16666673,0.00045201,120]
[420485343,1776150119592,-177.16666673,0.00045201,120]
[420485344,1776150119623,-1314.51,0.00045201,120]
[420485345,1776150119649,-177.16666673,0.00045201,120]
[420485346,1776150119686,-177.16666673,0.00045201,120]
[420485347,1776150119718,-177.16666673,0.00045201,120]
[420485348,1776150119745,-177.16666673,0.00045201,120]
[420485349,1776150119777,-177.16666673,0.00045201,120]
[420485350,1776150119809,-177.16666673,0.00045201,120]
[420485351,1776150119838,-28603.98138156,0.00045201,120]
[420485352,1776150119863,-1000.0,0.00045201,120]
[420485353,1776150119894,-324.36,0.00045201,30]
[420485354,1776150119926,-567.93,0.00045201,30]
[420485355,1776150119957,-183.34,0.00045201,30]
[420485356,1776150119984,-168.30833335,0.00045201,120]
[420485357,1776150120023,-1000.0,0.00045201,30]
[420485358,1776150120059,-1000.0,0.00045201,30]
[420485359,1776150120101,-328.59756529,0.00045201,60]
[420485360,1776150120146,-1000.0,0.00045201,30]
[420485361,1776150120181,-5000.0,0.00045201,120]
[420485362,1776150120215,-1000.0,0.00045201,31]
[420485363,1776150120250,-1000.0,0.00045201,31]
[420485364,1776150120301,-1000.0,0.00045201,31]
[420485365,1776150120350,-1000.0,0.00045201,31]
[420485366,1776150120395,-1000.0,0.00045201,31]
[420485367,1776150120432,-1000.0,0.00045201,31]
[420485368,1776150120477,-1005.6437977,0.00045201,31]
[420485369,1776150120531,-1000.0,0.00045201,60]
[420485370,1776150120587,-174.27378722,0.00045201,120]
[420485371,1776150120625,-207.00755072,0.00045201,120]
[420485372,1776150120667,-207.00755072,0.00045201,120]
[420485373,1776150120711,-207.00755072,0.00045201,120]
[420485374,1776150120762,-1000.0,0.00045201,60]
[420485375,1776150120827,-207.00755072,0.00045201,120]
[420485376,1776150120889,-207.00755072,0.00045201,120]
[420485377,1776150120943,-207.00755072,0.00045201,120]
[420485378,1776150120974,-207.00755072,0.00045201,120]
[420485379,1776150121008,-200.0,0.00045201,120]
[420485380,1776150121044,-207.00755072,0.00045201,120]
[420485381,1776150121075,-200.0,0.00045201,120]
[420485382,1776150121121,-285.13399019,0.00045201,120]
[420485383,1776150121148,-207.00755072,0.00045201,120]
[420485384,1776150121192,-207.00755072,0.00045201,120]
[420485385,1776150121223,-207.00755072,0.00045201,120]
[420485386,1776150121266,-207.00755072,0.00045201,120]
[420485387,1776150121311,-207.00755071,0.00045201,120]
[420485388,1776150121368,-207.00755071,0.00045201,120]
[420485389,1776150121417,-207.00755071,0.00045201,120]
[420485390,1776150121464,-207.00755071,0.00045201,120]
[420485391,1776150121509,-207.00755071,0.00045201,120]
[420485392,1776150121560,-207.00755071,0.00045201,120]
[420485393,1776150121598,-1000.0,0.00045201,60]
[420485394,1776150121638,-2866.38948071,0.00045201,120]
[420485395,1776150121673,-570.29,0.00045201,30]
[420485396,1776150121701,-1000.0,0.00045201,30]
[420485397,1776150121742,-570.29,0.00045201,30]
[420485398,1776150121793,-1000.0,0.00045201,30]
[420485399,1776150121834,-151.0,0.00045201,30]
[420485400,1776150121876,-1000.0,0.00045201,60]
[420485401,1776150121918,-2416.64,0.00045201,120]
[420485402,1776150121945,-2416.64,0.00045201,120]
[420485403,1776150121973,-2416.64,0.00045201,120]
[420485404,1776150122003,-2416.64,0.00045201,120]
[420485405,1776150122034,-2416.64,0.00045201,120]
[420485406,1776150122064,-2416.64,0.00045201,120]
[420485407,1776150122096,-2416.64,0.00045201,120]
[420485408,1776150122127,-2416.64,0.00045201,120]
[420485409,1776150122545,-2416.64,0.00045201,120]
[420485410,1776150122593,-2416.64,0.00045201,120]
[420485411,1776150122647,-1000.0,0.00045201,30]
[420485412,1776150122687,-2416.64,0.00045201,120]
[420485413,1776150122733,-2416.64,0.00045201,120]
[420485414,1776150122768,-2416.64,0.00045201,120]
[420485415,1776150122801,-2416.64,0.00045201,120]
[420485416,1776150122848,-2416.64,0.00045201,120]
[420485417,1776150122879,-2416.64,0.00045201,120]
[420485418,1776150122920,-2416.64,0.00045201,120]
[420485419,1776150122956,-2416.64,0.00045201,120]
[420485420,1776150122995,-218.52,0.00045201,30]
[420485421,1776150123040,-2416.64,0.00045201,120]
[420485422,1776150123098,-2416.64,0.00045201,120]
[420485423,1776150123141,-1000.0,0.00045201,30]
[420485424,1776150123184,-2416.64,0.00045201,120]
[420485425,1776150123222,-2416.64,0.00045201,120]
[420485426,1776150123267,-2416.64,0.00045201,120]